bitfinex/quotes_ETHUSD_20220226
["timestamp","ask_amount","ask_price","bid_price","bid_amount"]
[1645892573279,0.00515485,2795.9,2795.8,16.69183197]
[1645892573688,0.00341228,2796.8,2796.0,0.89456]
[1645892573882,0.02061587,2796.4,2796.1,4.48225068]
[1645892574782,0.143276,2796.5,2796.1,4.48225068]
[1645892574982,0.14207665,2796.5,2796.1,4.48225068]
[1645892575181,0.00515431,2796.4,2796.1,4.48225068]
[1645892575984,0.02402643,2796.8,2795.9,2.68371]
[1645892575985,0.00341228,2796.8,2795.9,2.68371]
[1645892576230,0.24276948,2796.8,2795.6,0.1429]
[1645892576423,0.00515431,2796.4,2795.6,4.62515068]
[1645892576623,0.00515431,2796.4,2795.4,2.57859851]
[1645892576823,0.00515431,2796.4,2795.5,7.60345068]
[1645892577221,0.00341228,2796.6,2795.5,4.48225068]
[1645892577424,0.00515463,2796.1,2795.5,4.48225068]
[1645892577623,0.00515463,2796.1,2795.4,2.57859851]
[1645892577827,0.00515463,2796.1,2795.5,4.48225068]
[1645892578425,0.00341228,2796.4,2795.5,4.48225068]
[1645892578625,0.00341228,2796.4,2795.3,4.48225068]
[1645892578626,0.00515479,2795.9,2795.3,4.48225068]
[1645892578828,0.00515479,2795.9,2795.3,4.62515068]
[1645892579224,0.00515479,2795.9,2795.2,7.13737176]
[1645892579535,0.00515479,2795.9,2795.0,8.5514708]
[1645892579536,0.37041378,2795.7,2795.0,0.143]
[1645892579731,0.358,2795.5,2795.0,0.143]
[1645892579990,2.358,2795.1,2794.0,0.25]
[1645892580287,2.358,2795.1,2793.7,10.92]
[1645892580288,3.403,2795.1,2793.7,10.92]
[1645892580491,3.403,2795.1,2793.9,12.17326]
[1645892580492,4.59351228,2795.1,2793.9,12.17326]
[1645892580685,2.59351228,2795.1,2794.1,10.92]
[1645892580883,3.59351228,2795.1,2794.1,10.92]
[1645892581087,0.00515619,2794.6,2794.1,10.92]
[1645892581288,0.00515619,2794.6,2794.3,1.09755868]
[1645892582089,0.143343,2795.0,2794.3,12.01755868]
[1645892582295,0.00515624,2794.6,2794.3,12.91265868]
[1645892582691,0.00515624,2794.6,2794.3,1.99265868]
[1645892582890,0.00515624,2794.6,2794.1,3.58037]
[1645892583290,0.36141228,2795.3,2794.1,1.79019]
[1645892583491,0.00515635,2794.5,2794.1,1.79019]
[1645892583918,0.00515635,2794.5,2794.2,1.37091109]
[1645892584126,0.00515635,2794.5,2794.1,1.79019]
[1645892584525,2.4988,2795.2,2794.1,1.79019]
[1645892584720,0.00515641,2794.4,2794.1,1.79019]
[1645892585221,0.00515641,2794.4,2794.1,2.8936044]
[1645892585432,0.00515641,2794.4,2794.1,1.79019]
[1645892585622,0.358,2795.0,2793.7,4.75128]
[1645892585927,0.00515646,2794.4,2793.7,4.75128]
[1645892586129,0.00515646,2794.4,2793.8,1.51254887]
[1645892586525,0.00515646,2794.4,2793.7,4.60818]
[1645892586728,0.00515646,2794.4,2793.7,5.98469313]
[1645892586923,0.1431,2794.9,2793.7,5.98469313]
[1645892587126,0.00515668,2794.2,2793.7,5.98469313]
[1645892587982,5.97886804,2794.9,2793.7,5.98469313]
[1645892588281,0.00515678,2794.1,2793.7,5.98469313]
[1645892589286,0.5011,2794.7,2793.7,3.16689313]
[1645892589481,0.00515684,2794.0,2793.7,3.16689313]
[1645892590090,0.00515684,2794.0,2793.4,3.68517639]
[1645892590287,0.00515684,2794.0,2793.4,0.10404639]
[1645892590491,0.1431,2794.4,2793.4,0.10404639]
[1645892590689,0.358,2794.3,2793.4,0.10404639]
[1645892590986,0.00515705,2793.8,2793.4,0.10404639]
[1645892591433,0.00515705,2793.8,2793.5,1.20548209]
[1645892591735,0.3,2794.3,2793.5,1.20548209]
[1645892591943,0.00515716,2793.7,2793.5,2.10084209]
[1645892592934,0.1431,2794.4,2793.5,2.10084209]
[1645892593135,0.1431,2794.4,2793.5,0.89536]
[1645892593338,0.1431,2794.4,2793.4,0.10404639]
[1645892593536,0.358,2794.3,2793.4,0.10404639]
[1645892593736,0.658,2794.3,2793.4,0.10404639]
[1645892596185,0.358,2794.1,2793.4,0.10404639]
[1645892596387,0.5011,2794.1,2793.0,1.14555]
[1645892596686,0.8011,2794.1,2793.0,1.14555]
[1645892596888,0.00515363,2794.0,2793.0,1.14555]
[1645892597189,0.00515363,2794.0,2793.0,0.89555]
[1645892597686,0.143404,2794.0,2793.0,0.89555]
[1645892597884,0.00515401,2793.6,2793.0,0.89555]
[1645892598936,0.8011,2794.1,2793.0,0.89555]
[1645892599139,0.00515422,2793.4,2793.0,0.89555]
[1645892600139,0.8011,2794.1,2793.0,0.89555]
[1645892600339,0.00515433,2793.3,2793.0,0.89555]
[1645892601340,0.8011,2794.1,2793.0,0.89555]
[1645892601543,0.00483601,2793.3,2793.0,0.89555]
[1645892602420,6.27886804,2794.1,2793.0,0.89555]
[1645892602606,1.8011,2794.1,2793.0,0.89555]
[1645892602806,0.00483601,2793.3,2793.0,0.89555]
[1645892603611,0.5011,2793.9,2793.0,0.89555]
[1645892603809,0.658,2793.9,2793.0,0.89555]
[1645892604009,0.00483601,2793.3,2793.0,0.89555]
[1645892604211,0.00483601,2793.3,2793.0,0.89411492]
[1645892604812,0.1431,2794.0,2793.0,0.89411492]
[1645892605213,0.00483601,2793.3,2793.0,0.89411492]
[1645892605410,0.00483601,2793.3,2792.8,3.0861]
[1645892606013,0.1431,2793.8,2792.8,3.0861]
[1645892606235,0.1431,2794.0,2792.8,3.0861]
[1645892606432,0.00486822,2793.2,2792.8,3.0861]
[1645892607235,0.1431,2793.8,2792.8,3.0861]
[1645892607437,0.00486827,2793.1,2792.9,2.25517069]
[1645892608436,0.1431,2793.8,2792.9,2.25517069]
[1645892608639,0.00186049,2793.1,2792.9,2.25517069]
[1645892609138,0.00186049,2793.1,2792.9,3.15071069]
[1645892609738,0.358,2794.0,2792.9,3.15071069]
[1645892609982,0.00486423,2793.1,2792.9,3.15071069]
[1645892610200,0.00486423,2793.1,2793.0,11.278]
[1645892610389,0.01945191,2793.9,2793.1,11.40521845]
[1645892610787,4.6199,2794.1,2793.1,11.40521845]
[1645892611789,4.6199,2794.1,2793.4,1.14405113]
[1645892611987,1.3,2794.1,2793.1,11.40521845]
[1645892612389,0.3,2794.1,2793.1,11.40521845]
[1645892612794,2.3,2794.2,2793.1,11.40521845]
[1645892613089,3.3,2794.2,2793.1,10.50972845]
[1645892613293,3.3,2794.2,2793.1,11.61411407]
[1645892613294,0.1431,2794.1,2793.1,11.61411407]
[1645892613489,0.00214676,2793.8,2793.1,11.61411407]
[1645892614125,0.00214676,2793.8,2793.1,10.50972845]
[1645892614530,0.4431,2794.1,2793.1,10.50972845]
[1645892614730,0.00515325,2793.6,2793.1,10.50972845]
[1645892615631,0.1431,2794.1,2793.3,1.09041805]
[1645892615830,0.00214311,2793.5,2793.3,1.09041805]
[1645892616432,0.00214311,2793.5,2793.1,10.50972845]
[1645892616831,0.1431,2794.1,2793.1,10.50972845]
[1645892617033,0.143399,2793.9,2793.1,10.50972845]
[1645892617235,0.00214311,2793.4,2793.1,10.50972845]
[1645892617484,0.05214311,2793.4,2793.1,10.50972845]
[1645892618089,0.05,2793.4,2793.1,10.50972845]
[1645892618290,0.05214311,2793.4,2793.1,10.50972845]
[1645892619292,0.05,2793.4,2793.1,10.50972845]
[1645892619493,0.05514965,2793.4,2793.1,10.50972845]
[1645892619893,0.00514965,2793.4,2793.1,10.50972845]
[1645892620193,0.00514965,2793.4,2793.1,11.68061114]
[1645892620393,1.1431,2794.1,2793.1,23.49610114]
[1645892620599,0.1431,2794.1,2793.1,23.49610114]
[1645892620793,0.00514965,2793.4,2793.1,23.49610114]
[1645892621430,0.00514965,2793.4,2793.1,24.39155114]
[1645892621631,0.1431,2794.1,2793.1,24.39155114]
[1645892622031,0.00514965,2793.4,2793.1,24.39155114]
[1645892622232,0.00514965,2793.4,2793.2,1.51278421]
[1645892622833,0.1431,2794.1,2793.2,1.51278421]
[1645892623236,0.0051496,2793.4,2793.1,11.68061114]
[1645892623432,0.0051496,2793.4,2793.2,1.51278909]
[1645892623833,0.00069678,2793.4,2793.2,1.51278909]
[1645892624138,0.1431,2794.1,2793.2,1.51278909]
[1645892625587,0.00214311,2793.8,2793.2,1.51278909]
[1645892626391,5.97886804,2794.1,2793.2,1.51278909]
[1645892626591,1.5011,2794.1,2793.2,1.51278909]
[1645892626795,0.00214311,2793.6,2793.2,1.51278909]
[1645892627594,0.1431,2794.1,2793.2,2.40826909]
[1645892627794,0.1431,2794.1,2793.3,1.51278909]
[1645892627994,0.00514949,2793.5,2793.3,1.51278909]
[1645892628830,0.1431,2794.1,2793.3,1.51278909]
[1645892629232,0.00514949,2793.5,2793.3,1.51278909]
[1645892630032,0.1431,2794.1,2793.4,1.39214687]
[1645892630231,0.1431,2794.1,2793.5,1.51278909]
[1645892630434,0.16369377,2794.1,2793.5,1.51278909]
[1645892630633,0.16369377,2794.1,2793.2,0.89548]
[1645892630833,0.02059377,2794.1,2793.3,1.51277236]
[1645892631236,2.3,2794.2,2793.3,1.51277236]
[1645892631437,0.00514917,2793.8,2793.3,1.51277236]
[1645892631636,0.00514917,2793.8,2793.6,1.30997186]
[1645892631836,0.00514917,2793.8,2793.2,0.89548]
[1645892632037,0.00514917,2793.8,2793.3,1.51276396]
[1645892632489,2.3,2794.2,2793.3,1.51276396]
[1645892632688,0.00514933,2793.7,2793.3,1.51276396]
[1645892632887,0.00514933,2793.7,2793.2,0.89548]
[1645892633490,0.00514933,2793.7,2793.4,1.26921858]
[1645892633696,2.3,2794.2,2793.1,10.50972845]
[1645892633893,0.00514944,2793.6,2793.1,10.50972845]
[1645892634892,4.47776804,2794.1,2793.1,1.3761324]
[1645892635091,0.00514945,2793.5,2793.1,1.3761324]
[1645892636139,3.7431,2794.2,2793.6,1.21360609]
[1645892636349,0.00514941,2793.5,2793.1,0.00972845]
[1645892636947,0.00514941,2793.5,2793.1,0.90517845]
[1645892637345,3.4431,2794.2,2793.3,0.89544]
[1645892637545,0.00514941,2793.5,2793.3,0.89544]
[1645892638550,7.92086804,2794.2,2793.3,0.89544]
[1645892638751,0.00514949,2793.5,2793.3,0.89544]
[1645892639353,0.00514949,2793.5,2793.2,2.93240894]
[1645892639751,8.13576804,2794.2,2793.2,2.93240894]
[1645892639978,0.00514945,2793.5,2793.2,2.93240894]
[1645892640984,3.801391,2794.2,2793.2,2.93240894]
[1645892641184,0.00514945,2793.5,2793.2,2.93240894]
[1645892641785,0.00514945,2793.5,2793.2,1.14166894]
[1645892642085,3.658,2794.2,2793.2,1.14166894]
[1645892642285,0.00514945,2793.5,2793.2,1.14166894]
[1645892643289,0.1431,2794.1,2793.2,1.14166894]
[1645892643492,0.00514945,2793.5,2793.4,10.92]
[1645892643761,0.02059361,2794.1,2793.5,21.43029889]
[1645892644464,2.0,2794.2,2793.5,21.43029889]
[1645892644665,2.0,2794.2,2793.8,1.13004401]
[1645892644864,2.0,2794.2,2793.5,21.43029889]
[1645892645263,2.0,2794.2,2793.5,22.32561889]
[1645892645464,2.0,2794.2,2793.5,23.22093889]
[1645892646367,2.0,2794.2,2793.9,1.41372265]
[1645892646566,2.0,2794.2,2793.5,23.22093889]
[1645892646771,1.98463746,2794.2,2793.5,12.30093889]
[1645892647170,1.98463746,2794.2,2793.5,23.22093889]
[1645892647384,1.2274,2794.4,2793.5,23.73693889]
[1645892647782,1.5274,2794.4,2793.5,23.73693889]
[1645892648381,0.0051489,2794.1,2793.9,1.22828697]
[1645892649183,0.0051489,2794.1,2793.8,0.89527]
[1645892649487,0.00514884,2794.1,2793.5,12.30093889]
[1645892649684,0.00514884,2794.1,2793.5,12.81693889]
[1645892650084,0.00514884,2794.1,2793.5,23.73693889]
[1645892650284,0.00514884,2794.1,2793.8,0.89527]
[1645892650484,1.5274,2794.4,2793.8,0.89527]
[1645892650686,0.00514906,2793.9,2793.8,0.89527]
[1645892651334,0.00514906,2793.9,2793.6,1.37830766]
[1645892651832,1.5274,2794.4,2793.6,1.37830766]
[1645892652236,0.00514911,2793.9,2793.5,10.51029889]
[1645892652436,0.00514911,2793.9,2793.5,0.01029889]
[1645892653134,4.47776804,2794.1,2793.5,0.01029889]
[1645892653334,0.00514917,2793.8,2793.5,0.01029889]
[1645892654135,0.1431,2794.0,2793.5,0.01029889]
[1645892654333,0.00514922,2793.8,2793.5,0.01029889]
[1645892654988,0.00514922,2793.8,2793.6,1.51275402]
[1645892655392,0.1431,2794.2,2793.6,1.51275402]
[1645892655588,0.00514917,2793.8,2793.6,1.51275402]
[1645892656597,2.5274,2794.4,2793.6,1.51275402]
[1645892656794,0.00483726,2793.8,2793.6,1.51275402]
[1645892656996,0.00483726,2793.8,2793.7,1.25504617]
[1645892657201,0.00483726,2793.8,2793.7,2.76780019]
[1645892657895,0.00483721,2793.9,2793.7,2.76780019]
[1645892658096,0.00483721,2793.9,2793.8,1.51275402]
[1645892659043,1.5274,2794.4,2793.8,1.51275402]
[1645892659245,0.0048371,2794.0,2793.8,1.51275402]
[1645892659850,0.0048371,2794.0,2793.8,12.43275402]
[1645892660046,0.01934549,2794.4,2793.9,1.51275402]
[1645892660246,3.1403,2794.6,2794.0,1.51275402]
[1645892660445,3.1403,2794.6,2793.7,14.01413617]
[1645892660446,0.00483704,2794.0,2793.8,10.92]
[1645892660646,0.00483704,2794.0,2793.9,1.51252324]
[1645892661049,0.00483704,2794.0,2793.8,1.51252324]
[1645892661251,0.01934527,2794.5,2793.9,1.51252324]
[1645892661454,3.4403,2794.6,2794.0,1.51252324]
[1645892661652,0.00486213,2794.1,2793.7,1.25504617]
[1645892661851,0.00486213,2794.1,2793.8,1.51261284]
[1645892662490,3.4403,2794.6,2793.8,1.51261284]
[1645892662889,0.00486213,2794.1,2793.8,1.51261284]
[1645892663788,0.00486213,2794.1,2793.5,0.01029889]
[1645892663789,0.358,2794.5,2793.6,1.51261284]
[1645892663987,0.00486213,2794.1,2793.7,1.51265392]
[1645892664187,0.00486213,2794.1,2793.8,1.51265392]
[1645892664387,0.00486213,2794.1,2793.5,0.01029889]
[1645892664690,0.00486213,2794.1,2793.6,1.51266775]
[1645892664890,0.5011,2794.5,2793.6,1.51266775]
[1645892665193,0.00485997,2793.9,2793.6,1.51266775]
[1645892666143,0.1431,2794.5,2793.6,1.51266775]
[1645892666546,0.00486002,2793.9,2793.6,1.51266775]
[1645892667349,0.5011,2794.5,2793.6,1.51266775]
[1645892667547,0.00486002,2793.9,2793.6,1.51266775]
[1645892668549,0.1431,2794.5,2793.6,1.51266775]
[1645892668748,0.00486025,2793.9,2793.6,1.51266775]
[1645892669149,0.00486025,2793.9,2793.6,1.51137068]
[1645892669751,0.5011,2794.5,2793.6,1.51137068]
[1645892669994,0.00185074,2793.9,2793.6,1.51137068]
[1645892670995,0.5011,2794.5,2793.6,1.51137068]
[1645892671198,0.00185074,2793.9,2793.6,1.51137068]
[1645892672200,1.0389255,2794.5,2793.6,1.51137068]
[1645892672401,0.00201568,2793.9,2793.6,1.51137068]
[1645892673015,0.00201568,2793.9,2793.7,0.89529]
[1645892673402,0.1431,2794.5,2793.7,0.89529]
[1645892673633,0.00502883,2793.9,2793.8,0.89528]
[1645892674640,3.4403,2794.6,2793.8,0.89528]
[1645892674840,0.00502878,2794.0,2793.5,1.33934395]
[1645892675040,0.00502878,2794.0,2793.5,0.01029889]
[1645892675741,0.1431,2794.5,2793.5,0.01029889]
[1645892675942,0.00484308,2793.9,2793.5,0.01029889]
[1645892676144,0.00484308,2793.9,2793.6,1.29600202]
[1645892676342,0.00484308,2793.9,2793.5,0.01029889]
[1645892676943,0.143391,2794.4,2793.5,0.01029889]
[1645892677387,0.00484313,2793.8,2793.5,0.01029889]
[1645892677783,0.00484313,2793.8,2793.6,1.32754691]
[1645892678187,0.1431,2794.5,2793.6,1.32754691]
[1645892678383,0.00484313,2793.8,2793.6,1.32754691]
[1645892678987,0.11731249,2794.5,2793.7,6.5]
[1645892680388,0.26068849,2794.5,2793.7,6.5]
[1645892680794,0.11731249,2794.5,2793.7,6.5]
[1645892681938,0.11731249,2794.5,2794.0,0.00303498]
[1645892682935,0.11731249,2794.5,2793.7,6.5]
[1645892683137,0.00515218,2794.4,2794.1,0.00515278]
[1645892684137,4.95308053,2794.5,2793.5,0.01029889]
[1645892684339,0.143396,2794.4,2793.5,0.01029889]
[1645892684542,0.00515218,2794.4,2794.1,0.00515278]
[1645892684740,2.642,2794.3,2794.1,0.00515278]
[1645892684991,4.83576804,2794.2,2794.1,0.00515278]
[1645892685193,6.05136804,2794.2,2794.1,0.00515278]
[1645892685389,0.358,2794.0,2793.5,0.01029889]
[1645892685590,4.83576804,2794.0,2793.5,0.01029889]
[1645892685790,0.658,2794.0,2793.5,0.01029889]
[1645892686797,0.658,2794.0,2793.6,0.00515333]
[1645892687797,0.658,2794.0,2793.5,0.01029889]
[1645892687996,0.658,2794.0,2793.7,0.00515327]
[1645892688397,0.80142,2794.0,2793.7,0.00515327]
[1645892688643,0.658,2794.0,2793.7,0.00515327]
[1645892689040,5.13576804,2794.0,2793.5,0.01029889]
[1645892689239,5.13576804,2794.0,2793.7,0.00515322]
[1645892689240,6.13576804,2794.0,2793.7,0.00515322]
[1645892689842,1.658,2794.0,2793.7,0.00515322]
[1645892690043,0.658,2794.0,2793.7,0.00515322]
[1645892690242,0.658,2794.0,2793.5,0.01029889]
[1645892690444,0.658,2794.0,2793.7,0.00515322]
[1645892690645,5.13576804,2794.0,2793.7,0.00515322]
[1645892690846,6.13576804,2794.0,2793.7,0.00515322]
[1645892691350,6.13576804,2794.0,2793.5,0.01029889]
[1645892691651,6.13576804,2794.0,2793.7,0.00515322]
[1645892692249,6.27919104,2794.0,2793.7,0.00515322]
[1645892692485,6.13576804,2794.0,2793.5,0.01029889]
[1645892692889,1.3,2794.0,2793.7,0.00515322]
[1645892693286,0.3,2794.0,2793.7,0.00515322]
[1645892693486,4.07929437,2794.1,2793.7,0.00515322]
[1645892693693,4.07929437,2794.1,2793.5,0.01029889]
[1645892694088,4.07929437,2794.1,2793.7,0.00515322]
[1645892694287,1.658,2794.1,2793.7,0.00515322]
[1645892694690,0.658,2794.1,2793.7,0.00515322]
[1645892694891,0.658,2794.1,2793.5,0.01029889]
[1645892695292,0.658,2794.1,2793.8,0.00515316]
[1645892695893,3.63689437,2794.2,2793.8,0.00515316]
[1645892696148,3.78031037,2794.2,2793.5,0.01029889]
[1645892696356,3.78031037,2794.2,2793.8,0.00515311]
[1645892696550,3.63689437,2794.2,2793.8,0.00515311]
[1645892696751,1.2156,2794.2,2793.8,0.00515311]
[1645892697352,1.2156,2794.2,2793.5,0.01029889]
[1645892697353,1.5156,2794.2,2793.5,0.01029889]
[1645892697549,1.5156,2794.2,2793.9,0.00515305]
[1645892698551,0.358,2794.1,2793.5,0.01029889]
[1645892698753,1.25363,2794.1,2793.9,0.005153]
[1645892699151,2.8156,2794.2,2793.9,0.005153]
[1645892699352,1.8156,2794.2,2793.9,0.005153]
[1645892699552,0.358,2794.1,2793.9,0.005153]
[1645892699752,0.358,2794.1,2793.5,0.01029889]
[1645892699994,0.358,2794.1,2793.9,0.005153]
[1645892700797,1.25364,2794.1,2793.9,0.005153]
[1645892700995,1.25364,2794.1,2793.5,0.01029889]
[1645892700996,4.83576804,2794.0,2793.5,0.01029889]
[1645892701202,6.13576804,2794.0,2793.5,0.01029889]
[1645892701400,6.13576804,2794.0,2793.9,0.00515305]
[1645892702003,16.72385814,2794.0,2793.9,0.00515305]
[1645892702204,17.23985814,2794.0,2793.5,0.01029889]
[1645892702404,0.358,2793.7,2793.5,0.01029889]
[1645892702603,1.25397,2793.6,2793.5,0.00894698]
[1645892702802,9.63582814,2793.6,2793.5,0.00894698]
[1645892703403,10.63582814,2793.6,2793.5,0.00894698]
[1645892703838,13.69132814,2793.6,2793.5,0.00894698]
[1645892704441,13.69132814,2793.6,2792.9,0.02061806]
[1645892704442,0.00622628,2793.2,2792.9,0.02061806]
[1645892704640,1.2541,2793.1,2792.3,0.00380525]
[1645892704843,4.83576804,2793.0,2791.9,0.00380525]
[1645892705043,0.358,2793.0,2791.9,0.00380525]
[1645892705242,0.358,2792.8,2791.9,0.00380525]
[1645892705540,0.358,2792.8,2791.8,0.00380525]
[1645892705742,0.658,2792.8,2791.8,0.00380525]
[1645892706143,0.658,2792.8,2791.7,1.2699238]
[1645892706343,0.658,2792.8,2791.8,1.5132776]
[1645892706544,0.658,2792.8,2791.8,1.51708285]
[1645892706749,1.55409,2792.8,2791.8,1.51708285]
[1645892707395,1.55409,2792.8,2792.2,0.00515097]
[1645892707588,2.0983335,2792.8,2792.2,0.00515097]
[1645892707988,2.3852735,2792.8,2792.2,0.00515097]
[1645892708188,2.0983335,2792.8,2791.6,0.00380525]
[1645892708389,4.83576804,2792.7,2791.6,1.51721769]
[1645892708588,0.358,2792.7,2791.7,0.00380525]
[1645892708790,1.358,2792.7,2791.7,0.00380525]
[1645892708992,0.358,2792.7,2791.7,0.00380525]
[1645892711441,0.358,2792.7,2791.7,0.89973525]
[1645892711741,0.358,2792.7,2791.8,1.51721769]
[1645892711947,0.501469,2792.7,2792.1,0.00514715]
[1645892712940,0.501469,2792.7,2791.6,0.00380525]
[1645892713144,0.501469,2792.7,2792.3,0.00514694]
[1645892713345,1.1442435,2792.8,2792.3,0.00514694]
[1645892713742,0.5442435,2792.8,2792.3,0.00514694]
[1645892714242,0.5442435,2792.8,2791.8,0.00380525]
[1645892714448,0.5442435,2792.8,2792.4,0.00514677]
[1645892715290,0.8442435,2792.8,2791.6,0.14690525]
[1645892715489,0.8442435,2792.8,2791.7,1.51708714]
[1645892715691,0.8442435,2792.8,2792.5,0.00514672]
[1645892715991,0.89608,2792.7,2792.5,0.00514672]
[1645892716593,0.89608,2792.7,2791.7,0.00380525]
[1645892716803,0.89608,2792.7,2792.5,0.00514672]
[1645892717796,0.89608,2792.7,2791.7,0.00380525]
[1645892718021,0.89608,2792.7,2792.5,0.00514672]
[1645892719055,0.89608,2792.7,2791.7,0.00380525]
[1645892719256,0.89608,2792.7,2792.5,0.00514672]
[1645892719660,0.143472,2792.7,2792.5,0.00514672]
[1645892720256,0.143472,2792.7,2791.7,0.00380525]
[1645892720460,0.143472,2792.7,2792.5,0.00514672]
[1645892720660,3.8282435,2792.8,2792.5,0.00514672]
[1645892721458,4.1862435,2792.8,2791.7,0.00380525]
[1645892721757,4.1862435,2792.8,2792.5,0.00514667]
[1645892721758,4.45758462,2792.7,2792.5,0.00514667]
[1645892721957,4.4862435,2792.8,2792.5,0.00514667]
[1645892722161,1.0,2792.7,2792.5,0.00514667]
[1645892722415,0.89608,2792.7,2792.5,0.00514667]
[1645892722600,0.89608,2792.7,2792.1,0.02058975]
[1645892722601,0.358,2792.6,2791.7,0.00380525]
[1645892722801,0.658,2792.6,2792.5,0.00514672]
[1645892723003,0.3,2792.6,2792.5,0.00514672]
[1645892723201,1.80077162,2792.7,2792.5,0.00514672]
[1645892723807,1.94424862,2792.7,2791.7,0.00380525]
[1645892724005,6.40183324,2792.7,2792.5,0.00514672]
[1645892724205,4.45758462,2792.6,2792.5,0.00514672]
[1645892724407,12.44158462,2792.6,2792.5,0.00514672]
[1645892724607,12.6216657,2792.6,2792.5,0.00514672]
[1645892724812,16.2257558,2792.6,2792.5,0.00514672]
[1645892725012,0.358,2792.5,2791.2,0.00380525]
[1645892725210,0.358,2792.1,2791.2,1.51760755]
[1645892725411,0.89637,2791.9,2791.3,0.00380525]
[1645892725610,0.89637,2791.9,2791.1,1.51762858]
[1645892725910,1.19637,2791.9,2791.1,1.51382333]
[1645892726146,1.19637,2791.9,2791.1,5.8409997]
[1645892726349,1.19637,2791.9,2791.1,4.46138987]
[1645892726549,1.19637,2791.9,2791.1,0.00380525]
[1645892726852,1.19637,2791.9,2790.8,0.00380525]
[1645892727050,1.19637,2791.9,2791.1,4.45758462]
[1645892727250,1.19637,2791.9,2791.1,4.46138987]
[1645892727556,1.19637,2791.9,2791.4,0.00514398]
[1645892727750,1.339881,2791.9,2791.4,0.00514398]
[1645892728049,1.88171109,2791.9,2791.4,0.00514398]
[1645892728248,1.73820009,2791.9,2791.4,0.00514398]
[1645892728648,1.73820009,2791.9,2791.2,0.00380525]
[1645892728853,1.73820009,2791.9,2791.5,0.00514382]
[1645892729454,0.358,2791.8,2791.5,0.00514382]
[1645892729655,2.15096,2791.8,2791.5,0.00514382]
[1645892729897,0.89655,2791.5,2791.1,0.00380525]
[1645892730092,0.358,2791.4,2791.0,740.11104129]
[1645892730293,0.516,2791.3,2791.0,740.11104129]
[1645892730490,3.77735,2791.1,2791.0,740.11104129]
[1645892730690,8.53493462,2791.1,2791.0,740.11104129]
[1645892730888,5.07735,2791.1,2791.0,740.11104129]
[1645892731194,5.25743108,2791.1,2791.0,740.11104129]
[1645892731394,5.07735,2791.1,2791.0,740.11104129]
[1645892731791,3.284,2791.1,2791.0,740.11104129]
[1645892732598,2.284,2791.1,2791.0,740.11104129]
[1645892732791,3.284,2791.1,2791.0,740.10983631]
[1645892732994,2.284,2791.1,2791.0,740.10983631]
[1645892733196,3.81836877,2791.1,2791.0,740.10983631]
[1645892733497,2.99844985,2791.1,2791.0,740.10983631]
[1645892733755,3.99844985,2791.1,2791.0,740.10983631]
[1645892733964,9.24938447,2791.1,2791.0,739.61881835]
[1645892734158,10.76538447,2791.1,2791.0,731.9008899]
[1645892734553,13.47359985,2791.1,2791.0,731.15286982]
[1645892734757,17.86458563,2791.1,2791.0,731.15286982]
[1645892734954,13.47359985,2791.1,2791.0,731.15286982]
[1645892737161,13.47359985,2791.1,2791.0,730.60346982]
[1645892738007,16.91052156,2791.1,2791.0,730.60346982]
[1645892739613,16.91052156,2791.1,2791.0,729.18950691]
[1645892739817,19.33445798,2791.1,2791.0,729.18950691]
[1645892741643,19.33445798,2791.1,2791.0,728.91900691]
[1645892742950,19.33445798,2791.1,2791.0,728.37740002]
[1645892743749,15.89753627,2791.1,2791.0,728.37740002]
[1645892743953,12.29487956,2791.1,2791.0,728.37740002]
[1645892744156,12.11479848,2791.1,2791.0,728.37740002]
[1645892745905,9.69086206,2791.1,2791.0,728.37740002]
[1645892746309,10.99086206,2791.1,2791.0,728.37740002]
[1645892747309,11.17094314,2791.1,2791.0,728.37740002]
[1645892749849,10.99086206,2791.1,2791.0,728.37740002]
[1645892761203,10.99086206,2791.1,2791.0,728.32740002]
[1645892763199,10.99086206,2791.1,2791.0,727.83840002]
[1645892764741,10.99086206,2791.1,2791.0,727.63840002]
[1645892768693,10.99086206,2791.1,2791.0,727.30840002]
[1645892769599,11.50686206,2791.1,2791.0,727.30840002]
[1645892777694,10.99086206,2791.1,2791.0,727.30840002]
[1645892784709,10.98975505,2791.1,2791.0,727.30840002]
[1645892786356,13.14873711,2791.1,2791.0,727.30840002]
[1645892786559,11.84984412,2791.1,2791.0,727.30840002]
[1645892787368,9.33147535,2791.1,2791.0,727.66640002]
[1645892787957,11.31547535,2791.1,2791.0,727.66640002]
[1645892788757,9.45649329,2791.1,2791.0,727.66640002]
[1645892792001,9.45649329,2791.1,2791.0,727.30840002]
[1645892792205,10.45649329,2791.1,2791.0,727.30840002]
[1645892793651,10.45649329,2791.1,2791.0,726.30840002]
[1645892794647,10.99569895,2791.1,2791.0,726.14840002]
[1645892795153,11.89232895,2791.1,2791.0,726.14840002]
[1645892796457,11.89232895,2791.1,2791.0,725.61940002]
[1645892797714,12.40772895,2791.1,2791.0,725.17101778]
[1645892797908,12.52272895,2791.1,2791.0,725.17101778]
[1645892798307,12.70281003,2791.1,2791.0,725.17101778]
[1645892798709,12.52272895,2791.1,2791.0,725.17101778]
[1645892798911,12.40772895,2791.1,2791.0,725.17101778]
[1645892799109,12.92372895,2791.1,2791.0,725.17101778]
[1645892799312,12.40832895,2791.1,2791.0,725.17101778]
[1645892802351,13.61202895,2791.1,2791.0,725.17101778]
[1645892804355,17.81079551,2791.1,2791.0,705.72401563]
[1645892804557,13.61202895,2791.1,2791.0,705.72401563]
[1645892805394,12.40832895,2791.1,2791.0,705.72401563]
[1645892808211,12.40832895,2791.1,2791.0,704.85097198]
[1645892809046,10.59232895,2791.1,2791.0,704.85097198]
[1645892809244,9.69569895,2791.1,2791.0,704.85097198]
[1645892809643,1.1936,2791.8,2791.1,9.02862574]
[1645892810046,1.1936,2791.8,2791.6,1.34160568]
[1645892810246,1.1936,2791.8,2791.1,9.02862574]
[1645892810247,0.89637,2791.8,2791.1,9.02862574]
[1645892810447,1.19637,2791.8,2791.1,9.02862574]
[1645892810648,1.19637,2791.8,2791.3,0.00510253]
[1645892811047,2.0,2791.4,2791.3,0.00510253]
[1645892811249,2.3,2791.4,2791.3,1.30741758]
[1645892811449,2.3,2791.4,2791.3,1.30231505]
[1645892813505,2.3,2791.4,2791.2,0.00510264]
[1645892813900,2.3,2791.4,2791.1,9.02862574]
[1645892814103,2.3,2791.4,2791.2,0.00510269]
[1645892814501,2.3,2791.4,2791.2,1.28513783]
[1645892815101,2.3,2791.4,2791.1,9.02862574]